[Event "December 19 Early 2023"]
[Site "https://www.chess.com"]
[Date "2023.12.19"]
[Round "3"]
[White "Gontcharov, Vladislav"]
[Black "Lacasa Diaz, Josep Anton"]
[Result "1/2-1/2"]
[Board "106"]
[TimeControl "180+1"]
[WhiteFideId "4123492"]
[BlackFideId "2203375"]
[WhiteElo "2420"]
[BlackElo "2338"]
[WhiteTeam "RUS"]
[BlackTeam "ESP"]
[WhiteClock "0:00:18"]
[BlackClock "0:00:09"]

1. d4 {[%clk 0:03:00]}  d5 {[%clk 0:02:58]} 2. c4 {[%clk 0:02:58]}  e6 {[%clk 0:02:58]} 3. Nc3 {[%clk 0:02:58]}  c5 {[%clk 0:02:58]} 4. cxd5 {[%clk 0:02:57]}  exd5 {[%clk 0:02:59]} 5. Nf3 {[%clk 0:02:57]}  Nc6 {[%clk 0:03:00]} 6. g3 {[%clk 0:02:56]}  Nf6 {[%clk 0:02:58]} 7. Bg2 {[%clk 0:02:56]}  cxd4 {[%clk 0:02:58]} 8. Nxd4 {[%clk 0:02:55]}  Bc5 {[%clk 0:02:59]} 9. Nb3 {[%clk 0:02:55]}  Bb6 {[%clk 0:02:59]} 10. O-O {[%clk 0:02:55]}  d4 {[%clk 0:02:59]} 11. Na4 {[%clk 0:02:54]}  O-O {[%clk 0:02:59]} 12. Bg5 {[%clk 0:02:52]}  h6 {[%clk 0:02:59]} 13. Bxf6 {[%clk 0:02:51]}  Qxf6 {[%clk 0:03:00]} 14. Nxb6 {[%clk 0:02:51]}  axb6 {[%clk 0:03:01]} 15. Bxc6 {[%clk 0:02:51]}  bxc6 {[%clk 0:03:00]} 16. Qxd4 {[%clk 0:02:51]}  Rd8 {[%clk 0:02:51]} 17. Qxf6 {[%clk 0:02:42]}  gxf6 {[%clk 0:02:52]} 18. Rfd1 {[%clk 0:02:22]}  Rxd1+ {[%clk 0:02:51]} 19. Rxd1 {[%clk 0:02:21]}  Be6 {[%clk 0:02:52]} 20. Nd4 {[%clk 0:02:19]}  Rxa2 {[%clk 0:02:46]} 21. Nxc6 {[%clk 0:02:13]}  Rxb2 {[%clk 0:02:42]} 22. e4 {[%clk 0:02:07]}  Bg4 {[%clk 0:02:40]} 23. Re1 {[%clk 0:01:57]}  b5 {[%clk 0:02:28]} 24. Kg2 {[%clk 0:01:56]}  b4 {[%clk 0:02:22]} 25. h3 {[%clk 0:01:54]}  Be6 {[%clk 0:02:19]} 26. Nd4 {[%clk 0:01:51]}  b3 {[%clk 0:02:17]} 27. Rc1 {[%clk 0:01:42]}  Rd2 {[%clk 0:01:54]} 28. Nxe6 {[%clk 0:01:39]}  fxe6 {[%clk 0:01:54]} 29. Rc8+ {[%clk 0:01:40]}  Kf7 {[%clk 0:01:53]} 30. Rb8 {[%clk 0:01:41]}  b2 {[%clk 0:01:53]} 31. Kf3 {[%clk 0:01:41]}  Ke7 {[%clk 0:01:46]} 32. Ke3 {[%clk 0:01:40]}  Rc2 {[%clk 0:01:46]} 33. h4 {[%clk 0:01:36]}  Kd6 {[%clk 0:01:39]} 34. g4 {[%clk 0:01:31]}  e5 {[%clk 0:01:32]} 35. f3 {[%clk 0:01:25]}  Kc7 {[%clk 0:01:23]} 36. Rb3 {[%clk 0:01:22]}  Kd6 {[%clk 0:01:18]} 37. Rb8 {[%clk 0:01:21]}  Rh2 {[%clk 0:01:12]} 38. Kd3 {[%clk 0:01:14]}  Kc5 {[%clk 0:01:05]} 39. Kc3 {[%clk 0:01:10]}  Rf2 {[%clk 0:01:03]} 40. Rc8+ {[%clk 0:01:00]}  Kd6 {[%clk 0:01:01]} 41. Rb8 {[%clk 0:00:59]}  Kc7 {[%clk 0:00:54]} 42. Rxb2 {[%clk 0:00:57]}  Rxf3+ {[%clk 0:00:54]} 43. Kc4 {[%clk 0:00:57]}  Rf4 {[%clk 0:00:51]} 44. Kd5 {[%clk 0:00:57]}  Rxg4 {[%clk 0:00:51]} 45. h5 {[%clk 0:00:56]}  Rh4 {[%clk 0:00:46]} 46. Rf2 {[%clk 0:00:55]}  Rxh5 {[%clk 0:00:43]} 47. Rxf6 {[%clk 0:00:55]}  Kd7 {[%clk 0:00:43]} 48. Rf7+ {[%clk 0:00:54]}  Ke8 {[%clk 0:00:43]} 49. Rh7 {[%clk 0:00:49]}  Kf8 {[%clk 0:00:43]} 50. Ke6 {[%clk 0:00:48]}  Kg8 {[%clk 0:00:43]} 51. Ra7 {[%clk 0:00:47]}  Rg5 {[%clk 0:00:35]} 52. Kf6 {[%clk 0:00:46]}  Kh8 {[%clk 0:00:27]} 53. Re7 {[%clk 0:00:43]}  Kg8 {[%clk 0:00:23]} 54. Re8+ {[%clk 0:00:41]}  Kh7 {[%clk 0:00:23]} 55. Re6 {[%clk 0:00:26]}  Rg1 {[%clk 0:00:09]} 56. Rxe5 {[%clk 0:00:24]}  Rf1+ {[%clk 0:00:09]} 57. Ke6 {[%clk 0:00:24]}  Kg6 {[%clk 0:00:09]} 58. Rf5 {[%clk 0:00:24]}  Re1 {[%clk 0:00:08]} 59. e5 {[%clk 0:00:24]}  h5 {[%clk 0:00:09]} 60. Rf8 {[%clk 0:00:24]}  h4 {[%clk 0:00:09]} 61. Rg8+ {[%clk 0:00:23]}  Kh5 {[%clk 0:00:10]} 62. Kf5 {[%clk 0:00:22]}  Rf1+ {[%clk 0:00:09]} 63. Ke4 {[%clk 0:00:22]}  h3 {[%clk 0:00:10]} 64. e6 {[%clk 0:00:21]}  Kh4 {[%clk 0:00:09]} 65. Ke5 {[%clk 0:00:20]}  h2 {[%clk 0:00:08]} 66. Rh8+ {[%clk 0:00:19]}  Kg3 {[%clk 0:00:09]} 67. e7 {[%clk 0:00:17]}  Re1+ {[%clk 0:00:09]} 68. Kf6 {[%clk 0:00:18]}  Rxe7 {[%clk 0:00:08]} 69. Kxe7 {[%clk 0:00:17]}  Kg2 {[%clk 0:00:09]} 70. Rxh2+ {[%clk 0:00:18]}  Kxh2 {[%clk 0:00:09]} 1/2-1/2

[Event "December 19 Early 2023"]
[Site "https://www.chess.com"]
[Date "2023.12.19"]
[Round "3"]
[White "Thorfinnsson, Bjorn"]
[Black "Bazilius, Augustinas"]
[Result "1-0"]
[Board "107"]
[TimeControl "180+1"]
[WhiteFideId "2300982"]
[BlackFideId "12832251"]
[WhiteElo "2394"]
[BlackElo "2082"]
[WhiteTeam "ISL"]
[BlackTeam "LTU"]
[WhiteClock "0:00:38"]
[BlackClock "0:00:25"]

1. d4 {[%clk 0:03:00]}  Nf6 {[%clk 0:02:55]} 2. Nf3 {[%clk 0:03:00]}  c5 {[%clk 0:02:55]} 3. c3 {[%clk 0:03:00]}  g6 {[%clk 0:02:55]} 4. Bg5 {[%clk 0:02:59]}  cxd4 {[%clk 0:02:55]} 5. cxd4 {[%clk 0:02:59]}  Bg7 {[%clk 0:02:55]} 6. Nc3 {[%clk 0:02:59]}  d5 {[%clk 0:02:53]} 7. e3 {[%clk 0:02:59]}  Ne4 {[%clk 0:02:52]} 8. Nxe4 {[%clk 0:02:56]}  dxe4 {[%clk 0:02:52]} 9. Nd2 {[%clk 0:02:56]}  Qa5 {[%clk 0:02:27]} 10. Bh4 {[%clk 0:02:46]}  h5 {[%clk 0:02:18]} 11. Qb3 {[%clk 0:02:39]}  Nc6 {[%clk 0:02:08]} 12. Qb5 {[%clk 0:02:23]}  Qc7 {[%clk 0:01:09]} 13. Rc1 {[%clk 0:02:19]}  a6 {[%clk 0:01:05]} 14. Qb3 {[%clk 0:02:13]}  Qa5 {[%clk 0:00:54]} 15. Qc3 {[%clk 0:02:02]}  Qf5 {[%clk 0:00:43]} 16. h3 {[%clk 0:01:54]}  Be6 {[%clk 0:00:43]} 17. Qc2 {[%clk 0:01:46]}  Bd5 {[%clk 0:00:34]} 18. Bc4 {[%clk 0:01:42]}  e6 {[%clk 0:00:02]} 19. Qb3 {[%clk 0:01:33]}  O-O {[%clk 0:00:02]} 20. Bxd5 {[%clk 0:01:22]}  exd5 {[%clk 0:00:03]} 21. Rc5 {[%clk 0:01:22]}  Rfd8 {[%clk 0:00:01]} 22. Bxd8 {[%clk 0:01:20]}  Rxd8 {[%clk 0:00:02]} 23. Qxb7 {[%clk 0:01:17]}  Nb8 {[%clk 0:00:02]} 24. O-O {[%clk 0:01:12]}  Bf8 {[%clk 0:00:02]} 25. Rc3 {[%clk 0:01:07]}  Nd7 {[%clk 0:00:01]} 26. Rc8 {[%clk 0:01:03]}  Rxc8 {[%clk 0:00:01]} 27. Qxc8 {[%clk 0:01:03]}  Kg7 {[%clk 0:00:02]} 28. Rc1 {[%clk 0:01:01]}  Bd6 {[%clk 0:00:02]} 29. Nf1 {[%clk 0:00:58]}  Qe6 {[%clk 0:00:02]} 30. Rc6 {[%clk 0:00:57]}  Qf6 {[%clk 0:00:01]} 31. Qxa6 {[%clk 0:00:55]}  Nb8 {[%clk 0:00:01]} 32. Rxd6 {[%clk 0:00:55]}  Nxa6 {[%clk 0:00:01]} 33. Rxf6 {[%clk 0:00:55]}  Kxf6 {[%clk 0:00:02]} 34. a3 {[%clk 0:00:53]}  Ke6 {[%clk 0:00:02]} 35. Nd2 {[%clk 0:00:49]}  Kd6 {[%clk 0:00:02]} 36. Kf1 {[%clk 0:00:49]}  Kc6 {[%clk 0:00:03]} 37. b3 {[%clk 0:00:46]}  Kb5 {[%clk 0:00:03]} 38. Ke2 {[%clk 0:00:47]}  Nb8 {[%clk 0:00:03]} 39. f3 {[%clk 0:00:46]}  Nc6 {[%clk 0:00:04]} 40. fxe4 {[%clk 0:00:45]}  dxe4 {[%clk 0:00:05]} 41. Nxe4 {[%clk 0:00:44]}  f5 {[%clk 0:00:05]} 42. Nc3+ {[%clk 0:00:42]}  Ka5 {[%clk 0:00:05]} 43. Kd3 {[%clk 0:00:42]}  f4 {[%clk 0:00:05]} 44. exf4 {[%clk 0:00:42]}  g5 {[%clk 0:00:06]} 45. fxg5 {[%clk 0:00:42]}  h4 {[%clk 0:00:07]} 46. g6 {[%clk 0:00:42]}  Ne7 {[%clk 0:00:08]} 47. g7 {[%clk 0:00:41]}  Ng8 {[%clk 0:00:09]} 48. Ne4 {[%clk 0:00:40]}  Nh6 {[%clk 0:00:10]} 49. Nf6 {[%clk 0:00:40]}  Kb6 {[%clk 0:00:10]} 50. g8=Q {[%clk 0:00:39]}  Nxg8 {[%clk 0:00:11]} 51. Nxg8 {[%clk 0:00:38]}  Ka6 {[%clk 0:00:12]} 52. Nh6 {[%clk 0:00:38]}  Kb6 {[%clk 0:00:13]} 53. Nf5 {[%clk 0:00:38]}  Ka6 {[%clk 0:00:13]} 54. Nxh4 {[%clk 0:00:39]}  Kb6 {[%clk 0:00:14]} 55. Nf3 {[%clk 0:00:39]}  Ka6 {[%clk 0:00:15]} 56. Ne5 {[%clk 0:00:39]}  Kb6 {[%clk 0:00:16]} 57. h4 {[%clk 0:00:40]}  Ka6 {[%clk 0:00:17]} 58. h5 {[%clk 0:00:40]}  Kb6 {[%clk 0:00:18]} 59. h6 {[%clk 0:00:41]}  Ka6 {[%clk 0:00:19]} 60. h7 {[%clk 0:00:41]}  Kb6 {[%clk 0:00:20]} 61. h8=Q {[%clk 0:00:41]}  Ka6 {[%clk 0:00:21]} 62. Qf6+ {[%clk 0:00:41]}  Kb7 {[%clk 0:00:20]} 63. Qc6+ {[%clk 0:00:42]}  Ka7 {[%clk 0:00:21]} 64. Nc4 {[%clk 0:00:38]}  Kb8 {[%clk 0:00:21]} 65. Qd7 {[%clk 0:00:38]}  Ka8 {[%clk 0:00:21]} 66. g4 {[%clk 0:00:38]}  Kb8 {[%clk 0:00:22]} 67. g5 {[%clk 0:00:38]}  Ka8 {[%clk 0:00:23]} 68. g6 {[%clk 0:00:39]}  Kb8 {[%clk 0:00:24]} 69. g7 {[%clk 0:00:39]}  Ka8 {[%clk 0:00:25]} 70. g8=R# {[%clk 0:00:38]} 1-0

[Event "December 19 Early 2023"]
[Site "https://www.chess.com"]
[Date "2023.12.19"]
[Round "3"]
[White "Nigalidze, Gaioz"]
[Black "Herman, Daniel"]
[Result "1-0"]
[Board "108"]
[TimeControl "180+1"]
[WhiteFideId "13603078"]
[BlackFideId "30935008"]
[WhiteElo "2400"]
[BlackElo "1897"]
[WhiteTeam "GEO"]
[BlackTeam "USA"]
[WhiteClock "0:00:04"]
[BlackClock "0:00:00"]

1. e4 {[%clk 0:03:00]}  Nf6 {[%clk 0:02:59]} 2. e5 {[%clk 0:02:59]}  Nd5 {[%clk 0:02:59]} 3. d4 {[%clk 0:02:58]}  d6 {[%clk 0:02:59]} 4. c4 {[%clk 0:02:58]}  Nb6 {[%clk 0:02:59]} 5. f4 {[%clk 0:02:59]}  dxe5 {[%clk 0:02:59]} 6. fxe5 {[%clk 0:02:59]}  Bf5 {[%clk 0:03:00]} 7. Nf3 {[%clk 0:02:55]}  e6 {[%clk 0:03:00]} 8. Nc3 {[%clk 0:02:54]}  Bb4 {[%clk 0:03:00]} 9. a3 {[%clk 0:02:49]}  Bxc3+ {[%clk 0:03:00]} 10. bxc3 {[%clk 0:02:49]}  O-O {[%clk 0:02:57]} 11. Be2 {[%clk 0:02:42]}  c5 {[%clk 0:02:56]} 12. O-O {[%clk 0:02:39]}  Nc6 {[%clk 0:02:52]} 13. Bg5 {[%clk 0:02:35]}  Qd7 {[%clk 0:02:21]} 14. Qd2 {[%clk 0:01:51]}  Na5 {[%clk 0:02:18]} 15. dxc5 {[%clk 0:01:37]}  Qxd2 {[%clk 0:02:17]} 16. Nxd2 {[%clk 0:01:37]}  Na4 {[%clk 0:02:04]} 17. Bf3 {[%clk 0:01:26]}  Nxc5 {[%clk 0:01:50]} 18. Be7 {[%clk 0:01:25]}  Rfc8 {[%clk 0:01:48]} 19. Bh5 {[%clk 0:00:47]}  Bg6 {[%clk 0:01:29]} 20. Bxg6 {[%clk 0:00:42]}  hxg6 {[%clk 0:01:30]} 21. Rf3 {[%clk 0:00:36]}  Nd7 {[%clk 0:01:13]} 22. Bd6 {[%clk 0:00:27]}  Nxc4 {[%clk 0:01:08]} 23. Nxc4 {[%clk 0:00:28]}  Rxc4 {[%clk 0:01:08]} 24. Raf1 {[%clk 0:00:29]}  f5 {[%clk 0:01:03]} 25. exf6 {[%clk 0:00:29]}  gxf6 {[%clk 0:01:04]} 26. Be7 {[%clk 0:00:23]}  f5 {[%clk 0:01:01]} 27. Rd1 {[%clk 0:00:20]}  Ne5 {[%clk 0:00:48]} 28. Re3 {[%clk 0:00:20]}  Ng4 {[%clk 0:00:44]} 29. Rxe6 {[%clk 0:00:19]}  Rxc3 {[%clk 0:00:45]} 30. h3 {[%clk 0:00:16]}  Kf7 {[%clk 0:00:42]} 31. Ree1 {[%clk 0:00:12]}  Re3 {[%clk 0:00:32]} 32. Rxe3 {[%clk 0:00:08]}  Nxe3 {[%clk 0:00:32]} 33. Rd7 {[%clk 0:00:09]}  Nc2 {[%clk 0:00:15]} 34. Bc5+ {[%clk 0:00:08]}  Ke6 {[%clk 0:00:12]} 35. Rxb7 {[%clk 0:00:09]}  a6 {[%clk 0:00:11]} 36. Rb2 {[%clk 0:00:08]}  Na1 {[%clk 0:00:08]} 37. Bd4 {[%clk 0:00:05]}  Rd8 {[%clk 0:00:07]} 38. Rb6+ {[%clk 0:00:04]}  Kf7 {[%clk 0:00:06]} 39. Be5 {[%clk 0:00:04]}  Rd1+ {[%clk 0:00:06]} 40. Kh2 {[%clk 0:00:04]}  Nc2 {[%clk 0:00:07]} 41. Rxa6 {[%clk 0:00:04]}  Re1 {[%clk 0:00:06]} 42. Bf4 {[%clk 0:00:04]}  Re2 {[%clk 0:00:06]} 43. a4 {[%clk 0:00:03]}  Ne1 {[%clk 0:00:06]} 44. Kg1 {[%clk 0:00:03]}  Nxg2 {[%clk 0:00:05]} 45. Bg3 {[%clk 0:00:03]}  Ne3 {[%clk 0:00:05]} 46. Ra7+ {[%clk 0:00:04]}  Ke6 {[%clk 0:00:05]} 47. Bf2 {[%clk 0:00:04]}  f4 {[%clk 0:00:03]} 48. a5 {[%clk 0:00:04]}  Ra2 {[%clk 0:00:04]} 49. a6 {[%clk 0:00:05]}  Kf5 {[%clk 0:00:04]} 50. Rf7+ {[%clk 0:00:04]}  Ke4 {[%clk 0:00:04]} 51. Bxe3 {[%clk 0:00:04]}  Kxe3 {[%clk 0:00:04]} 52. a7 {[%clk 0:00:04]}  Kf3 {[%clk 0:00:04]} 53. h4 {[%clk 0:00:03]}  Kg3 {[%clk 0:00:04]} 54. Kf1 {[%clk 0:00:04]}  f3 {[%clk 0:00:04]} 55. Ke1 {[%clk 0:00:04]}  f2+ {[%clk 0:00:03]} 56. Kf1 {[%clk 0:00:04]}  Ra1+ {[%clk 0:00:00]} 57. Ke2 {[%clk 0:00:04]} 1-0

[Event "December 19 Early 2023"]
[Site "https://www.chess.com"]
[Date "2023.12.19"]
[Round "3"]
[White "Gubajdullin, Alexei"]
[Black "Serban, Cristian-Stefan"]
[Result "1-0"]
[Board "110"]
[TimeControl "180+1"]
[WhiteFideId "4141202"]
[BlackFideId "1241443"]
[WhiteElo "2274"]
[BlackElo "2040"]
[WhiteTeam "RUS"]
[BlackTeam "ROU"]
[WhiteClock "0:00:47"]
[BlackClock "0:00:03"]

1. e4 {[%clk 0:03:00]}  e5 {[%clk 0:03:00]} 2. Nf3 {[%clk 0:03:00]}  Nc6 {[%clk 0:03:00]} 3. Bb5 {[%clk 0:03:00]}  Nf6 {[%clk 0:03:01]} 4. d3 {[%clk 0:02:58]}  Bc5 {[%clk 0:03:00]} 5. O-O {[%clk 0:02:58]}  d6 {[%clk 0:02:55]} 6. c3 {[%clk 0:02:58]}  O-O {[%clk 0:02:51]} 7. h3 {[%clk 0:02:57]}  a6 {[%clk 0:02:46]} 8. Ba4 {[%clk 0:02:57]}  b5 {[%clk 0:02:36]} 9. Bc2 {[%clk 0:02:56]}  Ne7 {[%clk 0:02:32]} 10. a4 {[%clk 0:02:56]}  Bb7 {[%clk 0:02:33]} 11. Re1 {[%clk 0:02:52]}  Ng6 {[%clk 0:02:29]} 12. d4 {[%clk 0:02:52]}  Bb6 {[%clk 0:02:28]} 13. Na3 {[%clk 0:02:52]}  Qd7 {[%clk 0:02:17]} 14. Bd3 {[%clk 0:02:44]}  b4 {[%clk 0:01:49]} 15. Nc2 {[%clk 0:02:41]}  bxc3 {[%clk 0:01:46]} 16. bxc3 {[%clk 0:02:41]}  a5 {[%clk 0:01:44]} 17. Bb5 {[%clk 0:02:25]}  Bc6 {[%clk 0:01:33]} 18. Bxc6 {[%clk 0:02:20]}  Qxc6 {[%clk 0:01:33]} 19. Qd3 {[%clk 0:02:19]}  Nh5 {[%clk 0:01:20]} 20. g3 {[%clk 0:02:06]}  Rfe8 {[%clk 0:01:20]} 21. Kg2 {[%clk 0:02:03]}  h6 {[%clk 0:01:16]} 22. d5 {[%clk 0:01:57]}  Qd7 {[%clk 0:01:16]} 23. Be3 {[%clk 0:01:46]}  Bxe3 {[%clk 0:01:16]} 24. fxe3 {[%clk 0:01:44]}  Nf6 {[%clk 0:00:59]} 25. Na3 {[%clk 0:01:39]}  h5 {[%clk 0:00:48]} 26. Nb5 {[%clk 0:01:38]}  h4 {[%clk 0:00:42]} 27. gxh4 {[%clk 0:01:30]}  Nh5 {[%clk 0:00:42]} 28. Kh2 {[%clk 0:01:28]}  Qe7 {[%clk 0:00:40]} 29. Rg1 {[%clk 0:01:21]}  Rec8 {[%clk 0:00:26]} 30. Rg4 {[%clk 0:01:06]}  Nf6 {[%clk 0:00:23]} 31. Rg5 {[%clk 0:01:05]}  Nh7 {[%clk 0:00:16]} 32. Rg4 {[%clk 0:01:03]}  Nf6 {[%clk 0:00:16]} 33. Rg2 {[%clk 0:01:02]}  Nh5 {[%clk 0:00:14]} 34. Rag1 {[%clk 0:01:01]}  Nxh4 {[%clk 0:00:13]} 35. Nxh4 {[%clk 0:00:55]}  Qxh4 {[%clk 0:00:14]} 36. Rg4 {[%clk 0:00:55]}  Qe7 {[%clk 0:00:11]} 37. Rg5 {[%clk 0:00:54]}  Nf6 {[%clk 0:00:03]} 38. Rxg7+ {[%clk 0:00:54]}  Kh8 {[%clk 0:00:04]} 39. Qf1 {[%clk 0:00:51]}  Rg8 {[%clk 0:00:05]} 40. Qg2 {[%clk 0:00:48]}  Nh5 {[%clk 0:00:04]} 41. Rxg8+ {[%clk 0:00:47]}  Rxg8 {[%clk 0:00:03]} 42. Qxg8# {[%clk 0:00:47]} 1-0

[Event "December 19 Early 2023"]
[Site "https://www.chess.com"]
[Date "2023.12.19"]
[Round "3"]
[White "Liu, Casper"]
[Black "Espinoza Villanueva, Rodrigo"]
[Result "0-1"]
[Board "111"]
[TimeControl "180+1"]
[WhiteFideId "1454153"]
[BlackFideId "5140188"]
[WhiteElo "2221"]
[BlackElo "1907"]
[WhiteTeam "DEN"]
[BlackTeam "MEX"]
[WhiteClock "0:00:00"]
[BlackClock "0:00:31"]

1. f4 {[%clk 0:03:00]}  d5 {[%clk 0:02:58]} 2. Nf3 {[%clk 0:03:01]}  c5 {[%clk 0:02:58]} 3. e3 {[%clk 0:03:01]}  g6 {[%clk 0:02:58]} 4. g3 {[%clk 0:03:02]}  Bg7 {[%clk 0:02:56]} 5. Bg2 {[%clk 0:03:03]}  Nc6 {[%clk 0:02:55]} 6. O-O {[%clk 0:03:03]}  Nh6 {[%clk 0:02:54]} 7. d3 {[%clk 0:03:04]}  O-O {[%clk 0:02:52]} 8. Nc3 {[%clk 0:03:04]}  d4 {[%clk 0:02:48]} 9. Ne4 {[%clk 0:03:02]}  Nf5 {[%clk 0:02:46]} 10. exd4 {[%clk 0:02:59]}  cxd4 {[%clk 0:02:47]} 11. g4 {[%clk 0:02:55]}  Ne3 {[%clk 0:02:42]} 12. Bxe3 {[%clk 0:02:53]}  dxe3 {[%clk 0:02:42]} 13. h3 {[%clk 0:02:33]}  Bxb2 {[%clk 0:02:35]} 14. Rb1 {[%clk 0:02:34]}  Bg7 {[%clk 0:02:34]} 15. Qe1 {[%clk 0:02:28]}  Nd4 {[%clk 0:02:32]} 16. Nxd4 {[%clk 0:01:55]}  Bxd4 {[%clk 0:02:33]} 17. Kh1 {[%clk 0:01:47]}  Be6 {[%clk 0:02:17]} 18. c3 {[%clk 0:01:43]}  Bb6 {[%clk 0:02:14]} 19. f5 {[%clk 0:01:04]}  Bd5 {[%clk 0:02:09]} 20. d4 {[%clk 0:00:31]}  Bxa2 {[%clk 0:02:04]} 21. Qh4 {[%clk 0:00:30]}  Kg7 {[%clk 0:01:25]} 22. g5 {[%clk 0:00:23]}  Bxb1 {[%clk 0:01:07]} 23. Qh6+ {[%clk 0:00:22]}  Kh8 {[%clk 0:01:01]} 24. Rf4 {[%clk 0:00:17]}  e2 {[%clk 0:00:47]} 25. f6 {[%clk 0:00:01]}  e1=Q+ {[%clk 0:00:43]} 26. Kh2 {[%clk 0:00:00]}  Rg8 {[%clk 0:00:31]} 0-1

[Event "December 19 Early 2023"]
[Site "https://www.chess.com"]
[Date "2023.12.19"]
[Round "3"]
[White "Uritsky, Yonathan"]
[Black "Karttunen, Mika"]
[Result "0-1"]
[Board "113"]
[TimeControl "180+1"]
[WhiteFideId "2825651"]
[BlackFideId "502081"]
[WhiteElo "2168"]
[BlackElo "2396"]
[WhiteTeam "ISR"]
[BlackTeam "FIN"]
[WhiteClock "0:00:01"]
[BlackClock "0:00:19"]

1. Nf3 {[%clk 0:02:54]}  Nf6 {[%clk 0:02:59]} 2. g3 {[%clk 0:02:54]}  g6 {[%clk 0:02:58]} 3. Bg2 {[%clk 0:02:54]}  Bg7 {[%clk 0:02:59]} 4. O-O {[%clk 0:02:54]}  O-O {[%clk 0:02:59]} 5. c4 {[%clk 0:02:53]}  d6 {[%clk 0:02:59]} 6. Nc3 {[%clk 0:02:52]}  Nc6 {[%clk 0:02:54]} 7. Rb1 {[%clk 0:02:51]}  a5 {[%clk 0:02:45]} 8. a3 {[%clk 0:02:51]}  Bf5 {[%clk 0:02:34]} 9. d3 {[%clk 0:02:49]}  e5 {[%clk 0:02:34]} 10. b4 {[%clk 0:02:38]}  axb4 {[%clk 0:02:33]} 11. axb4 {[%clk 0:02:39]}  Qd7 {[%clk 0:02:29]} 12. b5 {[%clk 0:02:10]}  Nd8 {[%clk 0:02:18]} 13. Ng5 {[%clk 0:02:02]}  h6 {[%clk 0:02:15]} 14. Nge4 {[%clk 0:02:02]}  Ne8 {[%clk 0:01:58]} 15. Nd5 {[%clk 0:01:58]}  Kh7 {[%clk 0:01:31]} 16. Bd2 {[%clk 0:01:16]}  Bh3 {[%clk 0:01:12]} 17. Bxh6 {[%clk 0:01:11]}  Bxg2 {[%clk 0:01:10]} 18. Bxg7 {[%clk 0:01:11]}  Kxg7 {[%clk 0:01:05]} 19. Kxg2 {[%clk 0:01:09]}  f5 {[%clk 0:00:58]} 20. Ng5 {[%clk 0:01:08]}  f4 {[%clk 0:00:54]} 21. Ra1 {[%clk 0:01:00]}  Rxa1 {[%clk 0:00:50]} 22. Qxa1 {[%clk 0:01:01]}  Nf6 {[%clk 0:00:38]} 23. Nxf6 {[%clk 0:00:50]}  Rxf6 {[%clk 0:00:38]} 24. Ne4 {[%clk 0:00:49]}  Rf8 {[%clk 0:00:37]} 25. d4 {[%clk 0:00:48]}  Rh8 {[%clk 0:00:34]} 26. h4 {[%clk 0:00:26]}  Qf5 {[%clk 0:00:29]} 27. f3 {[%clk 0:00:27]}  fxg3 {[%clk 0:00:27]} 28. Nxg3 {[%clk 0:00:26]}  Qf4 {[%clk 0:00:25]} 29. dxe5 {[%clk 0:00:27]}  dxe5 {[%clk 0:00:25]} 30. Rd1 {[%clk 0:00:25]}  Nf7 {[%clk 0:00:25]} 31. h5 {[%clk 0:00:12]}  gxh5 {[%clk 0:00:24]} 32. Rd7 {[%clk 0:00:12]}  h4 {[%clk 0:00:23]} 33. Ne4 {[%clk 0:00:10]}  h3+ {[%clk 0:00:23]} 34. Kh1 {[%clk 0:00:11]}  h2 {[%clk 0:00:22]} 35. Qf1 {[%clk 0:00:11]}  Rh6 {[%clk 0:00:20]} 36. Qg2+ {[%clk 0:00:09]}  Rg6 {[%clk 0:00:20]} 37. Qxh2 {[%clk 0:00:01]}  Qc1+ {[%clk 0:00:19]} 0-1

[Event "December 19 Early 2023"]
[Site "https://www.chess.com"]
[Date "2023.12.19"]
[Round "3"]
[White "Kovacsy, Barnabas"]
[Black "Graca, Robert"]
[Result "1/2-1/2"]
[Board "116"]
[TimeControl "180+1"]
[WhiteFideId "769290"]
[BlackFideId "644943"]
[WhiteElo "2130"]
[BlackElo "2204"]
[WhiteTeam "HUN"]
[BlackTeam "FRA"]
[WhiteClock "0:00:17"]
[BlackClock "0:00:06"]

1. e4 {[%clk 0:03:00]}  c5 {[%clk 0:02:58]} 2. Nf3 {[%clk 0:03:00]}  d6 {[%clk 0:02:57]} 3. d4 {[%clk 0:03:01]}  cxd4 {[%clk 0:02:58]} 4. Nxd4 {[%clk 0:03:01]}  Nf6 {[%clk 0:02:58]} 5. f3 {[%clk 0:03:02]}  g6 {[%clk 0:02:59]} 6. c4 {[%clk 0:03:02]}  Bg7 {[%clk 0:02:59]} 7. Nc3 {[%clk 0:03:01]}  Nc6 {[%clk 0:03:00]} 8. Be3 {[%clk 0:03:00]}  Nxd4 {[%clk 0:02:59]} 9. Bxd4 {[%clk 0:02:59]}  Be6 {[%clk 0:03:00]} 10. Rc1 {[%clk 0:02:55]}  O-O {[%clk 0:02:59]} 11. Be2 {[%clk 0:02:54]}  Qa5 {[%clk 0:02:59]} 12. O-O {[%clk 0:02:51]}  Rfc8 {[%clk 0:02:59]} 13. b3 {[%clk 0:02:49]}  a6 {[%clk 0:03:00]} 14. Na4 {[%clk 0:02:41]}  Nd7 {[%clk 0:02:55]} 15. Bxg7 {[%clk 0:02:30]}  Kxg7 {[%clk 0:02:56]} 16. Qd4+ {[%clk 0:02:30]}  Kg8 {[%clk 0:02:55]} 17. f4 {[%clk 0:02:13]}  b5 {[%clk 0:01:45]} 18. cxb5 {[%clk 0:02:05]}  axb5 {[%clk 0:01:41]} 19. Nc3 {[%clk 0:02:02]}  b4 {[%clk 0:01:16]} 20. Na4 {[%clk 0:01:57]}  Nc5 {[%clk 0:01:10]} 21. f5 {[%clk 0:01:42]}  Bd7 {[%clk 0:01:09]} 22. fxg6 {[%clk 0:01:34]}  hxg6 {[%clk 0:01:09]} 23. Nxc5 {[%clk 0:01:26]}  Rxc5 {[%clk 0:01:10]} 24. Bc4 {[%clk 0:01:25]}  Be8 {[%clk 0:01:04]} 25. Qf2 {[%clk 0:01:18]}  e6 {[%clk 0:00:59]} 26. Qf6 {[%clk 0:01:12]}  Re5 {[%clk 0:00:51]} 27. Rf3 {[%clk 0:00:59]}  Qb6+ {[%clk 0:00:32]} 28. Kh1 {[%clk 0:00:56]}  Qd8 {[%clk 0:00:32]} 29. Qf4 {[%clk 0:00:48]}  Rxa2 {[%clk 0:00:21]} 30. Rd1 {[%clk 0:00:43]}  Qg5 {[%clk 0:00:21]} 31. Qxg5 {[%clk 0:00:37]}  Rxg5 {[%clk 0:00:22]} 32. Rxd6 {[%clk 0:00:35]}  Raxg2 {[%clk 0:00:09]} 33. h4 {[%clk 0:00:34]}  Rg1+ {[%clk 0:00:08]} 34. Kh2 {[%clk 0:00:34]}  R5g2+ {[%clk 0:00:09]} 35. Kh3 {[%clk 0:00:34]}  Kg7 {[%clk 0:00:10]} 36. Rb6 {[%clk 0:00:28]}  Rb2 {[%clk 0:00:07]} 37. Rb7 {[%clk 0:00:23]}  Rh1+ {[%clk 0:00:06]} 38. Kg3 {[%clk 0:00:23]}  Rg1+ {[%clk 0:00:06]} 39. Kh3 {[%clk 0:00:22]}  Kf8 {[%clk 0:00:07]} 40. Bxe6 {[%clk 0:00:20]}  Rh1+ {[%clk 0:00:07]} 41. Kg3 {[%clk 0:00:20]}  Rg1+ {[%clk 0:00:07]} 42. Kh3 {[%clk 0:00:20]}  Rh1+ {[%clk 0:00:06]} 43. Kg3 {[%clk 0:00:17]}  Rg1+ {[%clk 0:00:06]} 44. Kh3 {[%clk 0:00:17]} 1/2-1/2